Cogmind - Beta 15 @@@ ROGUE MODE // 2025.05.31 @ 15:46:17 Player: OctagonalPrism Result: Destroyed by HV-15P(R) with Subdweller Laser Performance ------------- Evolutions (0) 0 Regions Visited (2) 400 Robots Destroyed (34) 170 Value Destroyed (673) 673 Prototype IDs (0) 0 Alien Tech Used (0) 0 Bonus (0) 0 TOTAL SCORE: 1243 Bonus ------- None Cogmind --------- Core Integrity 0/250 Matter 299/300 Energy 91/100 System Corruption 0% Temperature Cool (6) Movement Core (250) Ox4 Location -10/Subcaves Parts ------- > --- POWER (1) -------- (None) > --- PROPULSION (2) --- (None) > --- UTILITY (2) ------ Medium Storage Unit > --- WEAPON (2) ------- Particle Gun > --- INVENTORY (10) --- Subdweller Power Source Wheel Structural Scanner Subdweller Optics Scrap Shield Mining Claw Peak State ------------ > --- POWER ------------ Light Ion Engine > --- PROPULSION ------- Wheel Compact Wheel > --- UTILITY ---------- Small Storage Unit Improved Terrain Scanner > --- WEAPON ----------- Heavy EM Pulse Gun Heavy EM Pulse Gun > --- INVENTORY -------- Light Ion Engine Light Treads Light Treads Cooling System Particle Gun Particle Gun Assault Rifle [Rating: 12] Favorites ----------- Power Ion Engine Engine Ion Engine Propulsion Compact Wheel Treads Light Treads Wheel Compact Wheel Utility Small Storage Unit Device Improved Terrain Scanner Storage Small Storage Unit Processor Signal Interpreter Protection Light Armor Plating Weapon Medium Laser Energy Gun Medium Laser Ballistic Gun Assault Rifle Slashing Weapon Mining Claw Build | -11 -10 -10 ------- Run | Yrd Mat Sub Slots Evolved . | . . . Power . | . . . Propulsion . | . . . Utility . | . . . Weapon . | . . . Parts Attached 26 | 10 11 5 Power 4 | 2 2 . Engine 4 | 2 2 . Core . | . . . Reactor . | . . . Propulsion 5 | 4 1 . Treads 2 | 2 . . Leg . | . . . Wheel 3 | 2 1 . Hover . | . . . Flight . | . . . Utility 7 | 2 4 1 Device 3 | 1 2 . Storage 2 | 1 1 . Processor 1 | . 1 . Hackware . | . . . Protection 1 | . . 1 Artifact . | . . . Weapon 10 | 2 4 4 Energy Gun 7 | 1 4 2 Energy Cannon . | . . . Ballistic Gun 2 | 1 . 1 Ballistic Cannon . | . . . Launcher . | . . . Special Weapon . | . . . Impact Weapon . | . . . Slashing Weapon 1 | . . 1 Piercing Weapon . | . . . Special Melee Weapon . | . . . Unidentified Prototypes . | . . . Parts Lost 11 | . 2 9 Power 1 | . . 1 Propulsion 3 | . 1 2 Utility 2 | . . 2 Weapon 5 | . 1 4 Highest Loss Streak 6 | . 1 6 To Critical Strikes . | . . . Average Backups 5 | 4 9 8 Power . | . 1 1 Propulsion 1 | 1 1 1 Utility 1 | . 3 3 Weapon 1 | . 3 3 Tool/Special . | . . . Unused Backups 9 | . 2 7 Power 3 | . 1 2 Propulsion 1 | . . 1 Utility 3 | . . 3 Weapon 2 | . 1 1 Tool/Special . | . . . Average Slot Usage (%) 98 | . 98 99 Engine 13 | . 14 13 Treads 17 | . 13 22 Wheel 10 | . 14 4 Device 11 | . 12 9 Storage 14 | . 14 14 Protection 1 | . . 4 Energy Gun 26 | . 26 26 Peak Build Rating 12 | 9 12 11 Average Rating 8 | 7 10 9 On Entrance 6 | . 9 10 Naked Turns . | . . . Heaviest Build 24 | 15 23 24 Greatest Support 40 | 40 26 40 Greatest Overweight (x) 2 | . 2 1 Average Overweight (x) . | . 1 . Largest Inventory Capacity 10 | 8 10 10 Average Capacity 8 | 7 9 10 Most Carried 10 | 5 10 10 Average Carried 5 | 4 9 9 Final Capacity 10 | 8 10 10 Final Carried 10 | 4 10 7 Class Distribution -------------------- 100% | Mutant Dominant Class ---------------- Mutant | -10/Materials Mutant | -10/Subcaves Resources | -11 -10 -10 ----------- Run | Yrd Mat Sub Matter Collected 767 | 380 208 179 Remotely . | . . . Salvage Created 1101 | 185 593 323 Parts 67 | 13 31 23 Haulers Intercepted 2 | . 2 . Recyclers Shooed . | . . . Parts Field Recycled . | . . . Retrieved Matter . | . . . Parts Self-Destructed 8 | . . 8 Prevented . | . . . Kills | -11 -10 -10 ------- Run | Yrd Mat Sub Combat Hostiles Destroyed 24 | 4 11 9 Guns 20 | 4 9 7 AOE 4 | . 2 2 Classes Destroyed 8 | 2 5 1 Worker 2 | . 2 . Tunneler 7 | 7 . . Hauler 2 | . 2 . Watcher 3 | . 3 . Swarmer 8 | . 5 3 Grunt 6 | . 6 . Subdweller 6 | . . 6 Assembled 4 | 4 . . Best Kill Streak 3 | 3 3 3 Combat Bots Only 3 | 3 3 3 Max Kills in Single Turn 2 | 1 2 2 Gunslinging . | . . . Exploded 2 | . 1 2 Melee . | . . . Uniques/NPCs Destroyed . | . . . Combat | -11 -10 -10 -------- Run | Yrd Mat Sub Hostile Shots Fired 139 | 22 45 72 Missed 44 | 7 15 22 Hits 95 | 15 30 50 Melee 3 | 3 . . Projectile 92 | 12 30 50 AOE 3 | 1 . 2 Part Disruptions 1 | 1 . . Damage Taken 1622 | 219 413 990 Core 267 | 48 49 170 Absorbed by Shields . | . . . Regen/Repaired (Parts) 147 | . 147 . Core Remaining (%) 80 | 80 . . Volleys Fired 91 | 26 37 28 Largest 2 | 2 2 2 Hottest 130 | 70 90 130 Shots Fired 180 | 52 74 54 Gun 180 | 52 74 54 Cannon . | . . . Launcher . | . . . Special . | . . . Kinetic 31 | 26 . 5 Thermal 40 | 26 . 14 Explosive . | . . . Electromagnetic 109 | . 74 35 Robot Hit Streak 14 | 5 7 14 Robot Miss Streak 5 | 2 5 2 Penetration Max . | . . . Secondary Targets 2 | 1 . 1 Max Gunslinging Chain 1 | 1 . 1 Shots Hit Robots 111 | 30 42 39 Core Hits 53 | 16 21 16 Critical Kills . | . . . Critical Parts Destroyed . | . . . Critical Strikes 8 | 2 3 3 Burn 2 | 2 . . Destroy 1 | . . 1 Corrupt 5 | . 3 2 Melee Attacks 10 | . . 10 Impact . | . . . Slashing 10 | . . 10 Piercing . | . . . Sneak Attacks . | . . . Combat Hostiles . | . . . Follow-up Attacks . | . . . Damage Inflicted 1888 | 416 894 578 Guns 1647 | 416 729 502 Cannons . | . . . Explosions 241 | . 165 76 Melee . | . . . Ramming . | . . . Kinetic 253 | 193 . 60 Thermal 601 | 223 165 213 Explosive . | . . . Electromagnetic 1034 | . 729 305 Impact . | . . . Slashing . | . . . Piercing . | . . . Highest Corruption . | . . . Average Corruption . | . . . Corruption Purged . | . . . Corruption Blocked . | . . . Overload Shots . | . . . Overflow Damage . | . . . Projectiles . | . . . Explosions . | . . . Melee . | . . . Knockbacks . | . . . Impact . | . . . Kinetic . | . . . Secondary . | . . . Self-Inflicted Damage . | . . . Shots . | . . . Rammed . | . . . Targets Rammed . | . . . Kicked . | . . . Crushed . | . . . Highest Temperature 201 | 201 120 18 Average Temperature 42 | 44 40 12 Received Heat Transfer 321 | 120 105 96 Siege Activations . | . . . Martial Activations . | . . . Shielding Activations . | . . . Robots Disrupted . | . . . Combat Hostiles . | . . . Robots Corrupted . | . . . Combat Hostiles . | . . . Parts Fried 2 | . 1 1 Impact Corruptions . | . . . Robots Melted . | . . . Combat Hostiles . | . . . Parts Melted 1 | . . 1 Heat Transferred 1447 | 814 200 433 Parts Sabotaged . | . . . Parts Stolen . | . . . Parts Stripped . | . . . Power Chain Reactions 4 | . 3 1 Alert | -11 -10 -10 ------- Run | Yrd Mat Sub Maximum Alert Level . | . . . Low Security (%) 100 | 100 100 . Level 1 . | . . . Level 2 . | . . . Level 3 . | . . . Level 4 . | . . . Level 5 . | . . . High Security . | . . . Max Security . | . . . Peak Influence 84 | 5 84 . Initial . | . . . Average 4 | . 21 . Influence Increases 549 | 35 444 70 Destroy 0b10 Robot/C 280 | . 220 60 Destroy 0b10 Robot/NC 70 | 35 35 . Destroy Leader 70 | . 60 10 Successful Hack 27 | . 27 . Select Force Hacks 30 | . 30 . Disable Machine 30 | . 30 . Destroy Structure 12 | . 12 . Lose Combat Pursuer 30 | . 30 . Influence Decreases 549 | 35 444 70 Time Decay 539 | 35 434 70 Lost Part 10 | . 10 . Squads Dispatched 2 | . 2 . Investigation 2 | . 2 . Extermination . | . . . Reinforcement . | . . . Assault . | . . . Garrison . | . . . Intercept . | . . . Searches Triggered . | . . . Construction Impeded . | . . . Haulers Reinforced . | . . . Active Scanning Responses . | . . . Cargo Convoy Interrupts . | . . . Stealth | -11 -10 -10 --------- Run | Yrd Mat Sub Distress Signals 1 | . 1 . Communications Jammed . | . . . Distress Signals . | . . . Times Spotted 44 | 13 17 14 Peak Tracking Total 20 | 20 3 5 Tactical Retreats 4 | 2 2 . Traps | -11 -10 -10 ------- Run | Yrd Mat Sub Traps Triggered 2 | . 2 . Indirectly . | . . . Trap Hack Attempts . | . . . Triggered . | . . . Disarmed . | . . . Reprogrammed . | . . . Reused . | . . . Traps Extracted . | . . . Installed . | . . . Triggered . | . . . Machines | -11 -10 -10 ---------- Run | Yrd Mat Sub Machines Disabled 2 | . 2 . Max in Single Turn 2 | . 2 . Machines Repaired . | . . . Machines Dismantled . | . . . Machines Sabotaged . | . . . Overloaded Fab Kills . | . . . Hacking | -11 -10 -10 --------- Run | Yrd Mat Sub Machines Accessed 10 | . 9 1 Terminals 6 | . 6 . Fabricators . | . . . Repair Stations 1 | . 1 . Recycling Units 2 | . 2 . Scanalyzers . | . . . Garrison Access . | . . . Total Hacks 42 | . 39 3 Successful 25 | . 22 3 Failed 17 | . 17 . Catastrophic 2 | . 2 . Database Lockouts . | . . . Manual 16 | . 16 . Terminals 28 | . 28 . Fabricators . | . . . Repair Stations 4 | . 4 . Recycling Units 7 | . 7 . Scanalyzers . | . . . Garrison Access . | . . . Terminal Hacks 12 | . 9 3 Record 3 | . . 3 Robot Analysis 1 | . 1 . Terminal Index 1 | . 1 . Locate Traps 3 | . 3 . Hauler Manifests 1 | . 1 . Registered Components 1 | . 1 . Zone Layout 2 | . 2 . Fabricator Hacks . | . . . Repair Station Hacks 4 | . 4 . Scan Component 2 | . 2 . Repair 2 | . 2 . Recycling Unit Hacks 1 | . 1 . Report Inventory 1 | . 1 . Scanalyzer . | . . . Garrison Access Hacks . | . . . Unauthorized Hacks 8 | . 8 . Terminals 4 | . 4 . Track 1 | . 1 . Botnet 2 | . 2 . Operators 1 | . 1 . Fabricators . | . . . Repair Stations . | . . . Recycling Units 4 | . 4 . Reject 1 | . 1 . Recyclers 1 | . 1 . Mask 1 | . 1 . Tunnel 1 | . 1 . Scanalyzers . | . . . Garrison Access . | . . . Data Cores Recovered . | . . . Used . | . . . Hacking Detections 7 | . 7 . Full Trace Events 1 | . 1 . Feedback Events . | . . . Feedback Blocked . | . . . Robot Schematics Acquired . | . . . Robots Built . | . . . Authchips . | . . . Time . | . . . Total Robot Build Rating . | . . . Part Schematics Acquired . | . . . Parts Built . | . . . Authchips . | . . . Time . | . . . Total Part Build Rating . | . . . Parts Repaired 2 | . 2 . Time 58 | . 58 . Parts Recycled . | . . . Recycled Matter . | . . . Retrieved Matter . | . . . Retrieved Components . | . . . Parts Scanalyzed . | . . . Part Schematics Acquired . | . . . Parts Damaged . | . . . Bothacking | -11 -10 -10 ------------ Run | Yrd Mat Sub Used RIF Installer . | . . . Robots Hacked . | . . . Non-combat . | . . . Combat . | . . . Robot Hacks Applied . | . . . Relay Couplers Released . | . . . Fabnet Peak Effective % . | . . . Robots Rewired . | . . . Allies Hacked . | . . . Hacks Repelled . | . . . Allies | -11 -10 -10 -------- Run | Yrd Mat Sub Total Allies . | . . . Largest Group . | . . . Highest-Rated Group . | . . . Highest-Rated Ally . | . . . Total Orders . | . . . Ally Attacks . | . . . Total Damage . | . . . Kills . | . . . Allies Corrupted . | . . . Allies Melted . | . . . Intel | -11 -10 -10 ------- Run | Yrd Mat Sub Active Infowar (turns) 6888 | 4874 1106 908 Terrain 5023 | 4874 149 . Structural 1865 | . 957 908 Robot Analysis Total 1 | . 1 . Derelict Logs Recovered . | . . . Drone Launches . | . . . Drone Recoveries . | . . . Exploration | -11 -10 -10 ------------- Run | Yrd Mat Sub Turns Passed 10483 | 7305 1810 1368 Spaces Moved 3104 | 1363 1042 699 Core 4 | 4 . . Treads 1093 | 106 339 648 Legs . | . . . Wheels 2007 | 1253 703 51 Hover . | . . . Flight . | . . . Fastest Speed 50 | 50 90 115 Average Speed 131 | 95 149 173 Slowest Speed 240 | 160 240 240 Overloaded Moves . | . . . Propulsion Burnouts . | . . . Robots Hopped . | . . . Potential Cave-ins . | . . . Cave-ins Triggered . | . . . Exploration Rate (%) 75 | 74 98 54 Regions Visited 2 Branch Regions 1 Pre-discovered Areas 2 | . 1 1 Known Exits Taken 1 | . 1 . Unknown Exits Taken 1 | 1 . . Scrap Searched . | . . . Spaces Dug . | . . . Terrain Destroyed 16 | . 12 4 Melee . | . . . Projectile . | . . . AOE 16 | . 12 4 Terrain Rammed . | . . . Walls Destroyed . | . . . Machines Disabled . | . . . Actions | -11 -10 -10 --------- Run | Yrd Mat Sub Total 9303 | 7312 1217 774 Wait 6007 | 5904 96 7 Move 3102 | 1362 1041 699 Hop . | . . . Pick Up 22 | 7 10 5 Fast Attach 10 | 5 5 . Attach 7 | 2 1 4 Detach 2 | . 2 . Swap 36 | 5 14 17 Drop 16 | 1 11 4 Fire 91 | 26 37 28 Melee 10 | . . 10 Ram . | . . . Kick . | . . . Crush . | . . . Escape Stasis . | . . . Rewire . | . . . Trap . | . . . Miscellaneous . | . . . Route ------- -11/Scrapyard -10/Materials (discovered 6 exits: *Mat x3 / *Min x2 / *Sub) -10/Subcaves History --------- Turn | Location | Event 6 | -11/Scrapyard | Discovered new exit (range 16) 6937 | -11/Scrapyard | Assembled infested the area 7306 | -11/Scrapyard | Entered Materials 7340 | -10/Materials | Build established: Mutant 7432 | -10/Materials | Discovered new exit (range 8) 7528 | -10/Materials | Discovered new exit (range 3) 7575 | -10/Materials | Discovered new exit (range 13) 7615 | -10/Materials | Discovered new exit (range 7) 7622 | -10/Materials | Discovered new exit (range 15) 8110 | -10/Materials | Discovered new exit (range 15) 8568 | -10/Materials | Repaired Hvy. EM Pulse Gun 8595 | -10/Materials | Repaired Lgt. Treads 9001 | -10/Materials | Identified exit to Mines 9035 | -10/Materials | Identified exit to Materials 9061 | -10/Materials | Identified exit to Subcaves 9116 | -10/Materials | Entered Subcaves 9117 | -10/Subcaves | Approached by a straggling Scientist 9123 | -10/Subcaves | Ambushed by Subdwellers from Twisted Machinery 9141 | -10/Subcaves | Core integrity fell below 50% 9755 | -10/Subcaves | Visited Clippyterm 9760 | -10/Subcaves | Learned location of Deep Caves (-6) 10033 | -10/Subcaves | Shifting Twisted Machinery released Sub. Machine Gun 10043 | -10/Subcaves | Shifting Twisted Machinery released Sub. Power Source 10460 | -10/Subcaves | A Subdweller sparked back to life 10460 | -10/Subcaves | A Subdweller sparked back to life 10460 | -10/Subcaves | A Subdweller sparked back to life 10481 | -10/Subcaves | Core integrity fell below 20% 10484 | -10/Subcaves | Destroyed by HV-15P(R) with Subdweller Laser Last Messages --------------- 10410_ GS-3PD(R) affixes Scrap Shield Fragment to Scrap Shield. 10410_ Disposable Heat Sink melted. 10410_ GS-3PD(R) destroyed. 10413_ Acquired 53 matter. 10415_ Acquired 12 matter. 10419_ Acquired 10 matter. 10459_ Ion Engine destroyed. 10460_ HV-15P(R) creaks and sparks as it begins to move. 10460_ E1-9U1(R) creaks and sparks as it begins to move. 10460_ DT-W2G(R) creaks and sparks as it begins to move. 10464_ Lgt. Treads destroyed. 10466_ Particle Gun destroyed. 10474_ Cooling System destroyed. 10476_ Lgt. Treads destroyed. 10479_ E1-9U1(R) suffers critical hit (Destroy). 10482_ Sub. Machine Gun destroyed. Map ----- +----------------------------------------------------+ | ?????????????????????????????????????????????????? | | ?????????????????????????????????????????????????? | | ?????????????????????????????????????????????????? | | ?????????????????????????????????????????????????? | | ?????????????????????????????????????????????????? | | ?????????????????????????????????????????????????? | | ?????????????????????????????????????????????????? | | ?????????????????????????????????????????????????? | | ?????????????????????????????????????????????????? | | ?????????????????????????????????????????????????? | | ?????????????????#??????????#####????????????????? | | ????????????????## ?????????######????######?????? | | ????????????????# ?????????## ##???########????? | | ??????????###??## ?######??# ###### ###????? | | ??????????##" ### ## # #??# ##### ####??? | | ?????????? "" ## ; ###### # "" #### | | ???????????"" ;;######[&&"" """ " | | ???????????""" # #&!%"" " """ | | ??????????????## &# """" | | ??????????????## ## # =##### """""" | | ??????????????### " ;###### #####""""" ### | | ????????????????#" "" ### ##?##""" ##?# | | ????????????????#" # ##??#""""#??? | | ????????????????# """"" R R ## ### ###??##""##??? | | ????????????????## "##RR ###########???####???? | | ????????????????## "##@ ####?####???????????? | | ????????????????## " & # ##??????????????????? | | ????????????????####"### ###??????????????????? | | ????????????????#### #####????????????????? | | ??????????????????## ####????????????????? | | ?????????????????#### # ##????????????????? | | ???????????????###### ## ##????????????????? | | ??????????????##### #### ###????????????????? | | ??????????????### #### ###????????????????? | | ???????????##### ### ###????????????????? | | ??????????### ### ## ##????????????????? | | ??????????## #### ##????????????????? | | ??????????## ??## ###????????????????? | | ??????????## ??### ###########?######??? | | ??????????## ???### * ####################### | | ?????????? ## # ????## %[######## ##### ##### | | ?????????? # ## ????##[% ###### ### # | | ??????????? # ###????###&&!#### ### # | | ??????????? ???????####! #### ######## ## | | ??????????????????????### # # ######## #### | | ???????????????????????### ######## ##### | | ???????????????????????## ###### #### | | ??????????????????????? ## ### ## ## | | ??????????????????????? #### ## ## | | ????????????????????? #### ###""" ####" | +----------------------------------------------------+ Best States ------------- Heat Dissipation 47 Energy Generation 10 Energy Capacity 250 Matter Stores 300 Matter Capacity 300 Sight Range 16 Terrain Scan Range 16 Terrain Scan Density 10 Armor Coverage 150 Evasion (%) 42 Recoil Reduction 2 Item Schematics ----------------- None Robot Schematics ------------------ None Fabricated ------------ Nothing Repaired ---------- Hvy. EM Pulse Gun | 2% | -10/Materials Lgt. Treads | 30% | -10/Materials Alien Tech Used ----------------- None Achievements -------------- Curiosity Killed The Cat Challenges ------------ None Game ------ Seed GuidanceConcussiveCutter Manual? 0 Play Time 00:33:22 Cumulative 226.8 hours Start 2025.05.29 @ 00:59:34 End 2025.05.31 @ 15:46:17 Sessions 3 Manual Loads 0 Difficulty Rogue Special Mode None Game No. 179 Rogue 179 Adventurer 0 Explorer 0 Win Type - Total 6 Types 4/0/1/1/0/0/0/0/0/0 Lore% 76 Gallery% 67 Achievement% 56 Wizard Run 0 Options --------- Layout 2 ASCII 0 Keyboard 0 Movement Numpad Keybinds 0 Fullscreen 2 Font 16/Terminus Map View 55x47 Zoom Use 0% Tactical HUD 1 Map Filters NONE Filters NONE Steam 1 RUN: 7bbda5a3-d37f-413b-80f5-9d3e80ebdd9e